fUST/lending_fUST_20260107
["ID","MTS","AMOUNT","RATE_DAILY","PERIOD"]
[400670441,1767775885823,-612.995739,0.000307,31]
[400670442,1767775885833,-612.995739,0.000307,31]
[400670443,1767775885843,-15924.41,0.000307,6]
[400670444,1767775885852,-612.995739,0.000307,31]
[400670445,1767775885862,-191.37491647,0.00030771,21]
[400670446,1767775885871,-34692.55458483,0.00030788,2]
[400670447,1767775885880,-595.37131296,0.00030788,2]
[400670448,1767775885890,-2876.18991768,0.00030788,2]
[400670449,1767775885900,-775.0,0.00030793,2]
[400670450,1767775885909,-243.07,0.000308,7]
[400670451,1767775885919,-25963.54,0.000308,2]
[400670452,1767775885928,-1041.66666667,0.000308,30]
[400670453,1767775885937,-775.0,0.00030849,7]
[400670454,1767775885947,-500.0,0.00030853,7]
[400670455,1767775885957,-2771.0,0.00030889,2]
[400670456,1767775885966,-1908.17,0.000309,7]
[400670457,1767775885975,-357.4,0.000309,2]
[400670458,1767775885985,-258.12,0.000309,7]
[400670459,1767775885994,-1041.66666667,0.000309,10]
[400670460,1767775886004,-184.812283,0.00030917,31]
[400670461,1767775886014,-184.812283,0.00030917,31]
[400670462,1767775886023,-184.812283,0.00030917,31]
[400670463,1767775886033,-184.812283,0.00030917,31]
[400670464,1767775886042,-500.0,0.00030917,2]
[400670465,1767775886051,-151.0,0.00030917,31]
[400670466,1767775886061,-2251.87,0.00030917,2]
[400670467,1767775886071,-235.000047,0.00030917,31]
[400670468,1767775886080,-247.352857,0.00030917,31]
[400670469,1767775886091,-247.352857,0.00030917,31]
[400670470,1767775886100,-247.352857,0.00030917,31]
[400670471,1767775886109,-247.352857,0.00030917,31]
[400670472,1767775886119,-637.59,0.00030917,2]
[400670473,1767775886128,-2200.0,0.00030939,7]
[400670474,1767775886138,-892.0,0.00030955,120]
[400670475,1767775886147,-500.0,0.00030958,2]
[400670476,1767775886157,-557.84,0.00030958,2]
[400670477,1767775886170,-500.0,0.00030958,2]
[400670478,1767775886179,-500.0,0.00030958,2]
[400670479,1767775886189,-935.42793912,0.00030958,2]
[400670480,1767775886198,-582.84,0.00030958,2]
[400670481,1767775886208,-913.08,0.00030958,2]
[400670482,1767775886217,-500.0,0.00030958,2]
[400670483,1767775886226,-500.0,0.00030958,2]
[400670484,1767775886236,-1000.0,0.00030958,2]
[400670485,1767775886245,-756.53,0.00030958,2]
[400670486,1767775886256,-200.0,0.00030958,2]
[400670487,1767775886265,-500.0,0.00030958,2]
[400670488,1767775886274,-500.0,0.00030958,2]
[400670489,1767775886284,-500.0,0.00030958,2]
[400670490,1767775886293,-546.40698577,0.00030958,2]
[400670491,1767775886302,-3991.84,0.00030958,2]
[400670492,1767775886311,-500.0,0.00030958,2]
[400670493,1767775886320,-500.0,0.00030958,2]
[400670494,1767775886330,-725.03,0.00030958,2]
[400670495,1767775886339,-500.0,0.00030958,2]
[400670496,1767775886349,-500.0,0.00030958,2]
[400670497,1767775886359,-500.0,0.00030958,2]
[400670498,1767775886368,-836.74,0.00030958,2]
[400670499,1767775886378,-956.27,0.00030958,2]
[400670500,1767775886387,-4613.91,0.00030958,2]
[400670501,1767775886398,-14665.45,0.00030958,2]
[400670502,1767775886408,-678.0,0.00030958,2]
[400670503,1767775886418,-500.0,0.00030958,2]
[400670504,1767775886428,-500.0,0.00030958,2]
[400670505,1767775886438,-500.0,0.00030958,2]
[400670506,1767775886447,-402.32,0.00030958,30]
[400670507,1767775886455,-500.0,0.00030958,2]
[400670508,1767775886465,-2787.6,0.00030958,2]
[400670509,1767775886474,-661.34,0.00030958,2]
[400670510,1767775886485,-500.0,0.00030958,2]
[400670511,1767775886494,-505.05,0.00030958,2]
[400670512,1767775886505,-3024.23,0.00030958,2]
[400670513,1767775886514,-717.62,0.00030958,2]
[400670514,1767775886524,-909.99,0.00030958,2]
[400670515,1767775886534,-500.0,0.00030958,2]
[400670516,1767775886544,-601.36,0.00030958,2]
[400670517,1767775886554,-401.33329691,0.00030958,2]
[400670518,1767775886564,-500.0,0.00030958,2]
[400670519,1767775886573,-853.68,0.00030958,2]
[400670520,1767775886584,-1076.6,0.00030958,2]
[400670521,1767775886594,-5656.2215875,0.00030958,2]
[400670522,1767775886605,-689.83,0.00030958,2]
[400670523,1767775886614,-548.79,0.00030958,2]
[400670524,1767775886624,-690.11,0.00030958,2]
[400670525,1767775886633,-500.0,0.00030958,2]
[400670526,1767775886642,-836.4,0.00030958,2]
[400670527,1767775886651,-500.0,0.00030958,2]
[400670528,1767775886660,-500.0,0.00030958,2]
[400670529,1767775886670,-797.84,0.00030958,2]
[400670530,1767775886680,-500.71623148,0.00030958,2]
[400670531,1767775886690,-3088.57,0.00030958,2]
[400670532,1767775886700,-626.32134771,0.00030958,2]
[400670533,1767775886802,-316.0,0.00030959,14]
[400670534,1767775886812,-190.2708929,0.00031,120]
[400670535,1767775886822,-176.11325056,0.00031,120]
[400670536,1767775886831,-191.51603111,0.00031,120]
[400670537,1767775886841,-163.98489072,0.00031,120]
[400670538,1767775886851,-174.41697135,0.00031,120]
[400670539,1767775886860,-164.04291735,0.00031,120]
[400670540,1767775886870,-206.91086702,0.00031,120]
[400670541,1767775886881,-194.89245098,0.00031,120]
[400670542,1767775886890,-393.07429434,0.00031,120]
[400670543,1767775886900,-186.0317041,0.00031,120]
[400670544,1767775886910,-1247.79119589,0.00031,120]
[400670545,1767775886919,-1020.52354742,0.00031,7]
[400670546,1767775886929,-346.1,0.00031033,4]
[400670547,1767775886939,-535.0,0.00031074,120]
[400670548,1767775886948,-500.0,0.00031091,7]
[400670549,1767775886958,-500.0,0.00031098,7]
[400670550,1767775886968,-500.0,0.00031191,2]
[400670551,1767775886977,-2251.87,0.00031191,2]
[400670552,1767775886987,-637.59,0.00031191,2]
[400670553,1767775886996,-2771.0,0.00031206,7]
[400670554,1767775887007,-775.0,0.00031217,7]
[400670555,1767775887017,-373.26329317,0.00031232,2]
[400670556,1767775887027,-557.84,0.00031232,2]
[400670557,1767775887035,-500.0,0.00031232,2]
[400670558,1767775887046,-500.0,0.00031232,2]
[400670559,1767775887056,-582.84,0.00031232,2]
[400670560,1767775887067,-913.08,0.00031232,2]
[400670561,1767775887078,-500.0,0.00031232,2]
[400670562,1767775887088,-500.0,0.00031232,2]
[400670563,1767775887098,-1000.0,0.00031232,2]
[400670564,1767775887108,-756.53,0.00031232,2]
[400670565,1767775887117,-200.0,0.00031232,2]
[400670566,1767775887128,-500.0,0.00031232,2]
[400670567,1767775887138,-500.0,0.00031232,2]
[400670568,1767775887148,-500.0,0.00031232,2]
[400670569,1767775887158,-209.524359,0.00031232,31]
[400670570,1767775887167,-209.524359,0.00031232,31]
[400670571,1767775887177,-209.524359,0.00031232,31]
[400670572,1767775887187,-209.524359,0.00031232,31]
[400670573,1767775887196,-241.004676,0.00031232,31]
[400670574,1767775887206,-241.004676,0.00031232,31]
[400670575,1767775887216,-241.004676,0.00031232,31]
[400670576,1767775887225,-241.004676,0.00031232,31]
[400670577,1767775887235,-3991.84,0.00031232,2]
[400670578,1767775887244,-186.329815,0.00031232,31]
[400670579,1767775887254,-186.329815,0.00031232,31]
[400670580,1767775887263,-500.0,0.00031232,2]
[400670581,1767775887273,-186.329815,0.00031232,31]
[400670582,1767775887284,-530.111159,0.00031232,31]
[400670583,1767775887293,-530.111159,0.00031232,31]
[400670584,1767775887303,-530.111159,0.00031232,31]
[400670585,1767775887313,-225.672265,0.00031232,31]
[400670586,1767775887324,-530.111159,0.00031232,31]
[400670587,1767775887335,-186.329815,0.00031232,31]
[400670588,1767775887345,-225.672265,0.00031232,31]
[400670589,1767775887355,-225.672265,0.00031232,31]
[400670590,1767775887364,-225.672265,0.00031232,31]
[400670591,1767775887373,-500.0,0.00031232,2]
[400670592,1767775887383,-151.0,0.00031232,31]
[400670593,1767775887393,-218.702509,0.00031232,31]
[400670594,1767775887407,-218.702509,0.00031232,31]
[400670595,1767775887418,-218.702509,0.00031232,31]
[400670596,1767775887429,-218.702509,0.00031232,31]
[400670597,1767775887438,-725.03,0.00031232,2]
[400670598,1767775887448,-500.0,0.00031232,2]
[400670599,1767775887458,-500.0,0.00031232,2]
[400670600,1767775887468,-500.0,0.00031232,2]
[400670601,1767775887478,-836.74,0.00031232,2]
[400670602,1767775887488,-956.27,0.00031232,2]
[400670603,1767775887501,-4613.91,0.00031232,2]
[400670604,1767775887512,-14665.45,0.00031232,2]
[400670605,1767775887524,-678.0,0.00031232,2]
[400670606,1767775887534,-421.52,0.00031232,2]
[400670607,1767775887545,-500.0,0.00031232,2]
[400670608,1767775887562,-500.0,0.00031232,2]
[400670609,1767775887580,-500.0,0.00031232,2]
[400670610,1767775887597,-2787.6,0.00031232,2]
[400670611,1767775887617,-661.34,0.00031232,2]
[400670612,1767775887638,-500.0,0.00031232,2]
[400670613,1767775887656,-505.05,0.00031232,2]
[400670614,1767775887675,-3024.23,0.00031232,2]
[400670615,1767775887690,-717.62,0.00031232,2]
[400670616,1767775887707,-909.99,0.00031232,2]
[400670617,1767775887728,-500.0,0.00031232,2]
[400670618,1767775887753,-601.36,0.00031232,2]
[400670619,1767775887766,-500.0,0.00031232,2]
[400670620,1767775887787,-853.68,0.00031232,2]
[400670621,1767775887803,-1076.6,0.00031232,2]
[400670622,1767775887819,-4768.42104712,0.00031232,2]
[400670623,1767775887835,-689.83,0.00031232,2]
[400670624,1767775887851,-548.79,0.00031232,2]
[400670625,1767775887866,-690.11,0.00031232,2]
[400670626,1767775887882,-192.31046126,0.00031232,2]
[400670627,1767775887896,-836.4,0.00031232,2]
[400670628,1767775887912,-442.89147681,0.00031232,2]
[400670629,1767775887927,-500.0,0.00031232,2]
[400670630,1767775887942,-797.84,0.00031232,2]
[400670631,1767775887958,-3088.57,0.00031232,2]
[400670632,1767775887973,-316.0,0.00031233,14]
[400670633,1767775887988,-5000.0,0.00031288,2]
[400670634,1767775888004,-4248.4958638,0.00031295,32]
[400670635,1767775888019,-35976.17910447,0.00031336,2]
[400670636,1767775888035,-617.40005154,0.00031336,2]
[400670637,1767775888050,-2982.60894464,0.00031336,2]
[400670638,1767775888064,-1981.16465421,0.00031354,10]
[400670639,1767775888079,-2000.0,0.00031367,7]
[400670640,1767775888093,-170.0,0.0003137,46]
[400670641,1767775888108,-2200.0,0.00031385,7]
[400670642,1767775888122,-200.0,0.0003139,31]
[400670643,1767775888136,-200.0,0.0003139,31]
[400670644,1767775888151,-200.0,0.0003139,31]
[400670645,1767775888165,-200.0,0.0003139,31]
[400670646,1767775888179,-151.0,0.0003139,31]
[400670647,1767775888194,-151.0,0.0003139,31]
[400670648,1767775888208,-151.0,0.0003139,31]
[400670649,1767775888222,-194.927323,0.0003139,31]
[400670650,1767775888237,-194.927323,0.0003139,31]
[400670651,1767775888251,-194.927323,0.0003139,31]
[400670652,1767775888267,-194.927323,0.0003139,31]
[400670653,1767775888282,-200.632316,0.0003139,31]
[400670654,1767775888296,-200.632316,0.0003139,31]
[400670655,1767775888311,-200.632316,0.0003139,31]
[400670656,1767775888326,-200.632316,0.0003139,31]
[400670657,1767775888340,-2811.62,0.000314,14]
[400670658,1767775888355,-400.79884869,0.00031465,2]
[400670659,1767775888369,-2251.87,0.00031465,2]
[400670660,1767775888385,-637.59,0.00031465,2]
[400670661,1767775888401,-557.84,0.00031506,2]
[400670662,1767775888417,-500.0,0.00031506,2]
[400670663,1767775888432,-500.0,0.00031506,2]
[400670664,1767775888446,-582.84,0.00031506,2]
[400670665,1767775888461,-913.08,0.00031506,2]
[400670666,1767775888475,-500.0,0.00031506,2]
[400670667,1767775888489,-500.0,0.00031506,2]
[400670668,1767775888504,-1000.0,0.00031506,2]
[400670669,1767775888519,-756.53,0.00031506,2]
[400670670,1767775888534,-200.0,0.00031506,2]
[400670671,1767775888548,-500.0,0.00031506,2]
[400670672,1767775888562,-500.0,0.00031506,2]
[400670673,1767775888577,-500.0,0.00031506,2]
[400670674,1767775888592,-3991.84,0.00031506,2]
[400670675,1767775888607,-500.0,0.00031506,2]
[400670676,1767775888622,-500.0,0.00031506,2]
[400670677,1767775888637,-725.03,0.00031506,2]
[400670678,1767775888653,-159.81329344,0.00031506,2]
[400670679,1767775888668,-500.0,0.00031506,2]
[400670680,1767775888822,-175.61547082,0.00031506,2]
[400670681,1767775888831,-836.74,0.00031506,2]
[400670682,1767775888841,-956.27,0.00031506,2]
[400670683,1767775888851,-4613.91,0.00031506,2]
[400670684,1767775888861,-14665.45,0.00031506,2]
[400670685,1767775888870,-678.0,0.00031506,2]
[400670686,1767775888879,-500.0,0.00031506,2]
[400670687,1767775888889,-500.0,0.00031506,2]
[400670688,1767775888898,-402.32,0.00031506,31]
[400670689,1767775888909,-297.37549913,0.00031506,2]
[400670690,1767775888919,-2787.6,0.00031506,2]
[400670691,1767775888928,-661.34,0.00031506,2]
[400670692,1767775888937,-500.0,0.00031506,2]
[400670693,1767775888947,-505.05,0.00031506,2]
[400670694,1767775888957,-3024.23,0.00031506,2]
[400670695,1767775888966,-717.62,0.00031506,2]
[400670696,1767775888976,-909.99,0.00031506,2]
[400670697,1767775888987,-2410.47,0.00031506,8]
[400670698,1767775888996,-500.0,0.00031506,2]
[400670699,1767775889006,-601.36,0.00031506,2]
[400670700,1767775889016,-500.0,0.00031506,2]
[400670701,1767775889027,-853.68,0.00031506,2]
[400670702,1767775889037,-1076.6,0.00031506,2]
[400670703,1767775889047,-689.83,0.00031506,2]
[400670704,1767775889056,-548.79,0.00031506,2]
[400670705,1767775889066,-690.11,0.00031506,2]
[400670706,1767775889076,-836.4,0.00031506,2]
[400670707,1767775889085,-500.0,0.00031506,2]
[400670708,1767775889096,-797.84,0.00031506,2]
[400670709,1767775889105,-3088.57,0.00031506,2]
[400670710,1767775889115,-2200.0,0.00031557,7]
[400670711,1767775889124,-2200.0,0.00031636,7]
[400670712,1767775889134,-167.0,0.00031644,14]
[400670713,1767775889143,-316.0,0.00031644,14]
[400670714,1767775889152,-775.0,0.00031653,2]
[400670715,1767775889162,-268.0,0.00031695,120]
[400670716,1767775889171,-2251.87,0.00031739,2]
[400670717,1767775889181,-637.59,0.00031739,2]
[400670718,1767775889190,-557.84,0.0003178,2]
[400670719,1767775889199,-500.0,0.0003178,2]
[400670720,1767775889208,-500.0,0.0003178,2]
[400670721,1767775889217,-582.84,0.0003178,2]
[400670722,1767775889228,-913.08,0.0003178,2]
[400670723,1767775889238,-500.0,0.0003178,2]
[400670724,1767775889248,-500.0,0.0003178,2]
[400670725,1767775889258,-1000.0,0.0003178,2]
[400670726,1767775889267,-151.0,0.0003178,31]
[400670727,1767775889277,-151.0,0.0003178,31]
[400670728,1767775889286,-151.0,0.0003178,31]
[400670729,1767775889295,-756.53,0.0003178,2]
[400670730,1767775889304,-200.0,0.0003178,2]
[400670731,1767775889314,-500.0,0.0003178,2]
[400670732,1767775889324,-323.57734877,0.0003178,2]
[400670733,1767775889568,-528.75024245,0.00027397,2]
[400670734,1767775889578,-176.42265123,0.0003178,2]
[400670735,1767775889587,-500.0,0.0003178,2]
[400670736,1767775889597,-704.11969557,0.0003178,2]
[400670737,1767775891197,-352.8926,0.00019178,4]
[400670738,1767775891206,-347.95905152,0.00026029,2]
[400670739,1767775986603,368.73932111,0.00012379,2]
[400670740,1767775987254,500.0,0.00012379,2]
[400670741,1767775987638,500.0,0.00012379,2]
[400670742,1767775988042,500.0,0.00012379,2]
[400670743,1767775988361,500.0,0.00012379,2]
[400670744,1767775988420,375.53247948,0.00012379,2]
[400670745,1767775989330,500.0,0.00012379,2]
[400670746,1767775996536,500.0,0.00012379,2]
[400670747,1767775996598,285.90100062,0.00012379,2]
[400670748,1767775996633,500.0,0.00012379,2]
[400670749,1767775996661,500.0,0.00012379,2]
[400670750,1767775996689,271.79824808,0.00012379,2]
[400670751,1767776029260,568.5862148,0.0001238,2]
[400670752,1767776140435,300.0,0.0003,120]
[400670754,1767776172093,1627.0,0.0003,120]
[400670755,1767776189895,300.0,0.0003,120]
[400670756,1767776277518,228.70076657,0.0001233,2]
[400670757,1767776282363,300.0,0.00012379,2]
[400670759,1767776305295,2535.1454178,0.0001233,2]
[400670760,1767776335531,1065.60655154,0.0001238,2]
[400670761,1767776335554,3365.80723366,0.0001238,2]
[400670762,1767776342379,300.0,0.00012379,2]
[400670763,1767776365653,5000.0,0.0001238,2]
[400670764,1767776373641,568.75806913,0.0001238,2]
[400670769,1767776554795,1027.71,0.00030136,120]
[400670770,1767776579056,-184.4766435,0.00012133,2]
[400670771,1767776587663,-167.95,0.00012133,2]
[400670772,1767776593113,4431.4037852,0.00012133,2]
[400670773,1767776601208,3836.57151009,0.00012133,2]
[400670776,1767776624296,1363.08141771,0.00012133,2]
[400670777,1767776624318,3636.91858229,0.00012133,2]
[400670783,1767776640031,5000.0,0.00012133,2]
[400670816,1767776760451,1081.115,0.00030137,120]
[400670822,1767776823989,393.0,0.00030137,120]
[400670825,1767776910463,-385.472,0.00012133,2]
[400670871,1767777037903,-2661.90268868,0.00012156,2]
[400670872,1767777037912,-249.85870367,0.00012211,2]
[400670873,1767777037922,-500.0,0.00012227,2]
[400670874,1767777037931,-521.53113461,0.00012227,2]
[400670876,1767777037941,-500.0,0.00012227,2]
[400670878,1767777037951,-500.0,0.00012227,2]
[400670880,1767777037960,-500.0,0.00012227,2]
[400670882,1767777037970,-500.0,0.00012227,2]
[400670884,1767777037979,-500.0,0.00012227,2]
[400670886,1767777037988,-300.0,0.00012227,2]
[400670888,1767777037997,-300.0,0.00012227,2]
[400670889,1767777038007,-1000000.0,0.00012228,2]
[400670890,1767777038018,-487.00892918,0.00012328,2]
[400670891,1767777038028,-500.0,0.00012328,2]
[400670892,1767777038038,-500.0,0.00012328,2]
[400670893,1767777038047,-500.0,0.00012328,2]
[400670895,1767777038057,-500.0,0.00012328,2]
[400670897,1767777038067,-500.0,0.00012328,2]
[400670898,1767777038081,-500.0,0.00012328,2]
[400670899,1767777038091,-500.0,0.00012328,2]
[400670900,1767777038100,-500.0,0.00012328,2]
[400670901,1767777038111,-500.0,0.00012328,2]
[400670902,1767777038122,-500.0,0.00012328,2]
[400670903,1767777038132,-500.0,0.00012328,2]
[400670904,1767777038141,-500.0,0.00012328,2]
[400670905,1767777038152,-500.0,0.00012328,2]
[400670906,1767777038162,-500.0,0.00012328,2]
[400670907,1767777038171,-500.0,0.00012328,2]
[400670908,1767777038181,-500.0,0.00012328,2]
[400670909,1767777038191,-500.0,0.00012328,2]
[400670910,1767777038200,-500.0,0.00012328,2]
[400670911,1767777038210,-500.0,0.00012328,2]
[400670912,1767777038220,-500.0,0.00012328,2]
[400670913,1767777038230,-500.0,0.00012328,2]
[400670914,1767777038240,-500.0,0.00012328,2]
[400670915,1767777038250,-500.0,0.00012328,2]
[400670916,1767777038260,-431.62803678,0.00012328,2]
[400670917,1767777038271,-500.0,0.00012328,2]
[400670918,1767777038282,-500.0,0.00012328,2]
[400670919,1767777038291,-500.0,0.00012328,2]
[400670920,1767777038303,-500.0,0.00012328,2]
[400670921,1767777038314,-271.27386425,0.00012328,2]
[400670922,1767777038324,-500.0,0.00012328,2]
[400670923,1767777038334,-500.0,0.00012328,2]
[400670924,1767777038344,-500.0,0.00012328,2]
[400670925,1767777038354,-500.0,0.00012328,2]
[400670926,1767777038365,-500.0,0.00012328,2]
[400670927,1767777038375,-500.0,0.00012328,2]
[400670929,1767777038384,-500.0,0.00012328,2]
[400670931,1767777038394,-500.0,0.00012328,2]
[400670933,1767777038404,-500.0,0.00012328,2]
[400670935,1767777038414,-500.0,0.00012328,2]
[400670937,1767777038423,-500.0,0.00012328,2]
[400670939,1767777038432,-500.0,0.00012328,2]
[400670941,1767777038441,-500.0,0.00012328,2]
[400670943,1767777038451,-500.0,0.00012328,2]
[400670945,1767777038460,-500.0,0.00012328,2]
[400670947,1767777038470,-500.0,0.00012328,2]
[400670949,1767777038480,-500.0,0.00012328,2]
[400670951,1767777038489,-500.0,0.00012328,2]
[400670953,1767777038499,-500.0,0.00012328,2]
[400670955,1767777038508,-500.0,0.00012328,2]
[400670957,1767777038517,-500.0,0.00012328,2]
[400670959,1767777038527,-500.0,0.00012328,2]
[400670961,1767777038536,-500.0,0.00012328,2]
[400670963,1767777038546,-500.0,0.00012328,2]
[400670965,1767777038555,-500.0,0.00012328,2]
[400670967,1767777038564,-500.0,0.00012328,2]
[400670969,1767777038573,-500.0,0.00012328,2]
[400670971,1767777038583,-500.0,0.00012328,2]
[400670973,1767777038593,-500.0,0.00012328,2]
[400670975,1767777038603,-500.0,0.00012328,2]
[400670977,1767777038612,-328.19644822,0.00012328,2]
[400670979,1767777038622,-500.0,0.00012328,2]
[400670981,1767777038632,-500.0,0.00012328,2]
[400670983,1767777038641,-250.0,0.00012328,2]
[400670985,1767777038651,-500.0,0.00012328,2]
[400670987,1767777038660,-500.0,0.00012328,2]
[400670990,1767777038670,-500.0,0.00012328,2]
[400670992,1767777038678,-500.0,0.00012328,2]
[400670993,1767777038688,-500.0,0.00012328,2]
[400670995,1767777038698,-500.0,0.00012328,2]
[400670997,1767777038708,-500.0,0.00012328,2]
[400670999,1767777038717,-500.0,0.00012328,2]
[400671002,1767777038727,-500.0,0.00012328,2]
[400671004,1767777038737,-250.825143,0.00012328,2]
[400671006,1767777038746,-500.0,0.00012328,2]
[400671008,1767777038755,-500.0,0.00012328,2]
[400671010,1767777038764,-500.0,0.00012328,2]
[400671012,1767777038775,-500.0,0.00012328,2]
[400671014,1767777038785,-500.0,0.00012328,2]
[400671016,1767777038795,-500.0,0.00012328,2]
[400671018,1767777038804,-500.0,0.00012328,2]
[400671019,1767777038814,-500.0,0.00012328,2]
[400671021,1767777038823,-500.0,0.00012328,2]
[400671023,1767777038832,-500.0,0.00012328,2]
[400671025,1767777038842,-375.32,0.00012329,2]
[400671027,1767777038851,-312.76,0.00012329,2]
[400671029,1767777038861,-260.64,0.00012329,2]
[400671031,1767777038871,-217.2,0.00012329,2]
[400671033,1767777038881,-181.0,0.00012329,2]
[400671035,1767777038891,-150.83,0.00012329,2]
[400671037,1767777038900,-754.17,0.00012329,2]
[400671040,1767777038910,-50000.0,0.00012329,2]
[400671042,1767777038920,-300.0,0.00012627,2]
[400671044,1767777038929,-300.0,0.00012627,2]
[400671046,1767777038938,-300.0,0.00012627,2]
[400671047,1767777038947,-300.0,0.00012627,2]
[400671049,1767777038957,-300.0,0.00012627,2]
[400671051,1767777038966,-300.0,0.00012627,2]
[400671053,1767777038975,-300.0,0.00012627,2]
[400671055,1767777038985,-300.0,0.00012627,2]
[400671057,1767777038994,-300.0,0.00012627,2]
[400671059,1767777039004,-300.0,0.00012627,2]
[400671061,1767777039013,-300.0,0.00012627,2]
[400671063,1767777039023,-300.0,0.00012627,2]
[400671065,1767777039034,-300.0,0.00012627,2]
[400671067,1767777039043,-300.0,0.00012627,2]
[400671069,1767777039053,-300.0,0.00012627,2]
[400671071,1767777039063,-600.0,0.00012627,2]
[400671073,1767777039074,-500.0,0.00013273,2]
[400671075,1767777039085,-500.0,0.00013273,2]
[400671077,1767777039095,-500.0,0.00013273,2]
[400671079,1767777039105,-500.0,0.00013273,2]
[400671081,1767777039114,-420.0,0.00013419,2]
[400671083,1767777039126,-300.0,0.00013673,2]
[400671085,1767777039136,-500.0,0.00013698,2]
[400671087,1767777039147,-500.0,0.00013698,2]
[400671090,1767777039157,-500.0,0.00013698,2]
[400671092,1767777039166,-500.0,0.00013698,2]
[400671094,1767777039176,-560.87931796,0.00013698,2]
[400671096,1767777039186,-500.0,0.00013698,2]
[400671098,1767777039196,-500.0,0.00013698,2]
[400671100,1767777039206,-500.0,0.00013698,2]
[400671102,1767777039216,-500.0,0.00013698,2]
[400671104,1767777039226,-500.0,0.00013698,2]
[400671106,1767777039236,-500.0,0.00013698,2]
[400671108,1767777039248,-500.0,0.00013698,2]
[400671110,1767777039258,-500.0,0.00013698,2]
[400671112,1767777039268,-500.0,0.00013698,2]
[400671114,1767777039279,-500.0,0.00013698,2]
[400671116,1767777039289,-500.0,0.00013698,2]
[400671118,1767777039299,-500.0,0.00013698,2]
[400671120,1767777039309,-500.0,0.00013698,2]
[400671122,1767777039319,-500.0,0.00013698,2]
[400671124,1767777039329,-500.0,0.00013698,2]
[400671126,1767777039338,-500.0,0.00013698,2]
[400671128,1767777039348,-500.0,0.00013698,2]
[400671130,1767777039357,-500.0,0.00013698,2]
[400671132,1767777039367,-362.49716895,0.00013698,2]
[400671134,1767777039376,-500.0,0.00013698,2]
[400671136,1767777039386,-500.0,0.00013698,2]
[400671138,1767777039397,-500.0,0.00013698,2]
[400671140,1767777039406,-500.0,0.00013699,2]
[400671142,1767777039416,-152.05252624,0.00013699,2]
[400671144,1767777039425,-158.43712124,0.00013699,2]
[400671146,1767777039435,-160.28540264,0.00013699,2]
[400671148,1767777039444,-500.0,0.00013699,2]
[400671150,1767777039453,-396.79905749,0.00013699,2]
[400671152,1767777039463,-500.0,0.00013699,2]
[400671154,1767777039472,-500.0,0.00013699,2]
[400671156,1767777039482,-500.0,0.00013699,2]
[400671158,1767777039492,-444.06491981,0.00013699,2]
[400671160,1767777039501,-500.0,0.00013699,2]
[400671162,1767777039510,-500.0,0.00013699,2]
[400671164,1767777039519,-1000.0,0.00013821,2]
[400671166,1767777039528,-1000.0,0.00013821,2]